[Event "Blixt-SM 2021"]
[Site "Elite Hotel Marina Plaza, Kungstorget 6, Helsingborg, Sweden"]
[Date "2021.11.14"]
[Round "5.5"]
[White "Abedinov, Adnan"]
[Black "Svensson, Mikael"]
[Result "0-1"]
[TimeControl "3 minutes + 2 seconds per move."]
[WhiteFideId "1703544"]
[BlackFideId "1716433"]
[WhiteElo "2170"]
[BlackElo "2073"]

1. c4 {[%clk 00:03:02]} {[%emt 00:00:02]} f5 {[%clk 00:03:02]} {[%emt
00:00:02]} 2. Nc3 {[%clk 00:03:03]} {[%emt 00:00:01]} Nf6 {[%clk 00:03:03]} 3.
g3 {[%clk 00:03:04]} d6 {[%clk 00:03:03]} {[%emt 00:00:02]} 4. Bg2 {[%clk
00:03:04]} {[%emt 00:00:02]} e5 {[%clk 00:03:03]} {[%emt 00:00:02]} 5. d4
{[%clk 00:03:05]} {[%emt 00:00:01]} Be7 {[%clk 00:02:56]} {[%emt 00:00:09]} 6.
Nf3 {[%clk 00:02:45]} {[%emt 00:00:22]} e4 {[%clk 00:02:54]} {[%emt 00:00:04]}
7. Ng5 {[%clk 00:02:45]} {[%emt 00:00:02]} O-O {[%clk 00:02:48]} {[%emt
00:00:08]} 8. d5 {[%clk 00:02:42]} {[%emt 00:00:04]} h6 {[%clk 00:02:36]}
{[%emt 00:00:13]} 9. Nh3 {[%clk 00:02:25]} {[%emt 00:00:19]} g5 {[%clk
00:02:37]} {[%emt 00:00:02]} 10. Ng1 {[%clk 00:02:25]} {[%emt 00:00:02]} Nbd7
{[%clk 00:02:31]} {[%emt 00:00:08]} 11. h4 {[%clk 00:02:26]} Ng4 {[%clk
00:02:08]} {[%emt 00:00:25]} 12. hxg5 {[%clk 00:02:15]} {[%emt 00:00:12]} hxg5
{[%clk 00:02:08]} {[%emt 00:00:02]} 13. f3 {[%clk 00:01:11]} {[%emt 00:01:07]}
exf3 {[%clk 00:02:09]} {[%emt 00:00:01]} 14. exf3 {[%clk 00:01:05]} {[%emt
00:00:08]} Nge5 {[%clk 00:02:08]} {[%emt 00:00:03]} 15. b3 {[%clk 00:00:49]}
{[%emt 00:00:17]} Nc5 {[%clk 00:02:02]} {[%emt 00:00:09]} 16. Bf1 {[%clk
00:00:42]} {[%emt 00:00:09]} Bf6 {[%clk 00:01:56]} {[%emt 00:00:08]} 17. Bb2
{[%clk 00:00:39]} {[%emt 00:00:05]} Qe7 {[%clk 00:01:48]} {[%emt 00:00:10]} 18.
Kf2 {[%clk 00:00:39]} {[%emt 00:00:01]} Re8 {[%clk 00:01:24]} {[%emt 00:00:26]}
19. Qd2 {[%clk 00:00:38]} {[%emt 00:00:03]} Bd7 {[%clk 00:01:05]} {[%emt
00:00:21]} 20. Re1 {[%clk 00:00:39]} Ned3+ {[%clk 00:01:06]} 21. Bxd3 {[%clk
00:00:39]} {[%emt 00:00:02]} Nxd3+ {[%clk 00:01:07]} {[%emt 00:00:01]} 22. Qxd3
{[%clk 00:00:38]} {[%emt 00:00:03]} Qxe1+ {[%clk 00:01:08]} 23. Kg2 {[%clk
00:00:39]} Re3 {[%clk 00:00:59]} {[%emt 00:00:11]} 24. Qd1 {[%clk 00:00:24]}
{[%emt 00:00:17]} Bxc3 {[%clk 00:00:54]} {[%emt 00:00:07]} 25. Qxe1 {[%clk
00:00:19]} {[%emt 00:00:07]} Bxe1 {[%clk 00:00:24]} {[%emt 00:00:32]} 26. Rh8+
{[%clk 00:00:21]} Kf7 {[%clk 00:00:25]} {[%emt 00:00:01]} 27. Rxa8 {[%clk
00:00:22]} {[%emt 00:00:01]} Rd3 {[%clk 00:00:18]} {[%emt 00:00:08]} 28. Kf1
{[%clk 00:00:19]} {[%emt 00:00:05]} Bxg3 {[%clk 00:00:17]} {[%emt 00:00:03]} 29.
Ne2 {[%clk 00:00:15]} {[%emt 00:00:05]} Rd1+ {[%clk 00:00:12]} {[%emt
00:00:07]} 30. Kg2 {[%clk 00:00:16]} f4 {[%clk 00:00:08]} {[%emt 00:00:07]} 31.
Nxg3 {[%clk 00:00:16]} {[%emt 00:00:02]} Rd2+ {[%clk 00:00:08]} {[%emt
00:00:02]} 32. Kg1 {[%clk 00:00:16]} {[%emt 00:00:03]} fxg3 {[%clk 00:00:06]}
{[%emt 00:00:04]} 33. Bc3 {[%clk 00:00:12]} {[%emt 00:00:06]} Rc2 {[%clk
00:00:07]} 34. Bd4 {[%clk 00:00:12]} {[%emt 00:00:02]} Bh3 {[%clk 00:00:07]}
{[%emt 00:00:02]} 35. Be3 {[%clk 00:00:08]} {[%emt 00:00:05]} Re2 {[%clk
00:00:07]} {[%emt 00:00:03]} 0-1

[Event "Blixt-SM 2021"]
[Site "Elite Hotel Marina Plaza, Kungstorget 6, Helsingborg, Sweden"]
[Date "2021.11.14"]
[Round "7.3"]
[White "Rasti, Arvin"]
[Black "Olsson, Linus"]
[Result "0-1"]
[TimeControl "3 minutes + 2 seconds per move."]
[BlackTitle "FM"]
[WhiteFideId "1741160"]
[BlackFideId "1706098"]
[WhiteElo "2054"]
[BlackElo "2204"]

1. d4 {[%clk 00:03:03]} Nf6 {[%clk 00:03:03]} {[%emt 00:00:01]} 2. c4 {[%clk
00:03:04]} {[%emt 00:00:02]} e5 {[%clk 00:03:02]} {[%emt 00:00:02]} 3. dxe5
{[%clk 00:03:02]} {[%emt 00:00:04]} Ne4 {[%clk 00:03:02]} {[%emt 00:00:02]} 4.
a3 {[%clk 00:03:04]} {[%emt 00:00:01]} d6 {[%clk 00:02:57]} {[%emt 00:00:07]} 5.
Nd2 {[%clk 00:03:02]} {[%emt 00:00:04]} Nxd2 {[%clk 00:02:37]} {[%emt
00:00:21]} 6. Qxd2 {[%clk 00:03:01]} {[%emt 00:00:03]} dxe5 {[%clk 00:02:27]}
{[%emt 00:00:12]} 7. Qxd8+ {[%clk 00:03:01]} {[%emt 00:00:02]} Kxd8 {[%clk
00:02:28]} {[%emt 00:00:01]} 8. g3 {[%clk 00:03:02]} {[%emt 00:00:01]} Nc6
{[%clk 00:02:25]} {[%emt 00:00:05]} 9. e3 {[%clk 00:02:57]} {[%emt 00:00:07]}
a5 {[%clk 00:02:12]} {[%emt 00:00:16]} 10. Bd2 {[%clk 00:02:54]} {[%emt
00:00:05]} Bd6 {[%clk 00:02:03]} {[%emt 00:00:10]} 11. O-O-O {[%clk 00:02:52]}
{[%emt 00:00:04]} Ke7 {[%clk 00:02:00]} {[%emt 00:00:06]} 12. f4 {[%clk
00:02:48]} {[%emt 00:00:06]} Bf5 {[%clk 00:01:51]} {[%emt 00:00:11]} 13. Bg2
{[%clk 00:02:41]} {[%emt 00:00:09]} e4 {[%clk 00:01:25]} {[%emt 00:00:28]} 14.
Bc3 {[%clk 00:02:40]} {[%emt 00:00:02]} f6 {[%clk 00:01:20]} {[%emt 00:00:08]}
15. Ne2 {[%clk 00:02:38]} {[%emt 00:00:03]} h5 {[%clk 00:01:15]} {[%emt
00:00:08]} 16. h3 {[%clk 00:02:39]} Kf7 {[%clk 00:01:11]} {[%emt 00:00:05]} 17.
Rd5 {[%clk 00:02:27]} {[%emt 00:00:15]} Be6 {[%clk 00:01:07]} {[%emt 00:00:06]}
18. Rd2 {[%clk 00:02:27]} {[%emt 00:00:01]} f5 {[%clk 00:01:05]} {[%emt
00:00:04]} 19. h4 {[%clk 00:02:20]} {[%emt 00:00:09]} Bxc4 {[%clk 00:01:06]}
{[%emt 00:00:02]} 20. Bh3 {[%clk 00:02:16]} {[%emt 00:00:06]} Kg6 {[%clk
00:01:00]} {[%emt 00:00:08]} 21. Rhd1 {[%clk 00:02:13]} {[%emt 00:00:05]} Bb3
{[%clk 00:00:51]} {[%emt 00:00:12]} 22. Rg1 {[%clk 00:02:11]} {[%emt 00:00:03]}
Rhd8 {[%clk 00:00:51]} {[%emt 00:00:02]} 23. Nd4 {[%clk 00:02:11]} {[%emt
00:00:03]} Nxd4 {[%clk 00:00:50]} {[%emt 00:00:02]} 24. Bxd4 {[%clk 00:02:11]}
{[%emt 00:00:02]} Be7 {[%clk 00:00:47]} {[%emt 00:00:05]} 25. Bf1 {[%clk
00:01:59]} {[%emt 00:00:14]} c5 {[%clk 00:00:44]} {[%emt 00:00:06]} 26. Bc3
{[%clk 00:01:58]} {[%emt 00:00:04]} Rxd2 {[%clk 00:00:40]} {[%emt 00:00:06]} 27.
Bxd2 {[%clk 00:01:59]} Rd8 {[%clk 00:00:37]} {[%emt 00:00:05]} 28. Be2 {[%clk
00:01:54]} {[%emt 00:00:07]} b6 {[%clk 00:00:34]} {[%emt 00:00:05]} 29. Bc3
{[%clk 00:01:55]} Bf6 {[%clk 00:00:27]} {[%emt 00:00:09]} 30. Bxf6 {[%clk
00:01:55]} {[%emt 00:00:02]} Kxf6 {[%clk 00:00:17]} {[%emt 00:00:12]} 31. Bxh5
{[%clk 00:01:50]} {[%emt 00:00:07]} Rd3 {[%clk 00:00:18]} 32. Re1 {[%clk
00:01:51]} b5 {[%clk 00:00:19]} {[%emt 00:00:02]} 33. Be8 {[%clk 00:01:46]}
{[%emt 00:00:07]} b4 {[%clk 00:00:19]} {[%emt 00:00:02]} 34. axb4 {[%clk
00:01:40]} {[%emt 00:00:09]} axb4 {[%clk 00:00:19]} {[%emt 00:00:01]} 35. Bc6
{[%clk 00:01:31]} {[%emt 00:00:09]} c4 {[%clk 00:00:20]} {[%emt 00:00:03]} 36.
g4 {[%clk 00:01:32]} {[%emt 00:00:01]} c3 {[%clk 00:00:12]} {[%emt 00:00:10]}
37. bxc3 {[%clk 00:01:27]} {[%emt 00:00:07]} bxc3 {[%clk 00:00:13]} 38. Bb5
{[%clk 00:01:15]} {[%emt 00:00:14]} Rd2 {[%clk 00:00:06]} {[%emt 00:00:09]} 39.
g5+ {[%clk 00:00:51]} {[%emt 00:00:26]} Ke7 {[%clk 00:00:07]} 0-1

[Event "Blixt-SM 2021"]
[Site "Elite Hotel Marina Plaza, Kungstorget 6, Helsingborg, Sweden"]
[Date "2021.11.14"]
[Round "9.1"]
[White "Jepson, Christian"]
[Black "Storme, Isak"]
[Result "1/2-1/2"]
[TimeControl "3 minutes + 2 seconds per move."]
[WhiteTitle "IM"]
[BlackTitle "FM"]
[WhiteFideId "1701185"]
[BlackFideId "1728113"]
[WhiteElo "2412"]
[BlackElo "2037"]

1. Nf3 {[%clk 00:03:03]} {[%emt 00:02:59]} d5 {[%clk 00:03:03]} {[%emt
00:00:01]} 2. c4 {[%clk 00:03:04]} {[%emt 00:00:02]} e6 {[%clk 00:03:03]}
{[%emt 00:00:01]} 3. g3 {[%clk 00:03:05]} {[%emt 00:00:01]} Nf6 {[%clk
00:03:04]} {[%emt 00:00:01]} 4. Bg2 {[%clk 00:03:06]} Be7 {[%clk 00:03:04]}
{[%emt 00:00:02]} 5. O-O {[%clk 00:03:07]} {[%emt 00:00:02]} O-O {[%clk
00:03:04]} {[%emt 00:00:02]} 6. b3 {[%clk 00:03:06]} {[%emt 00:00:03]} b6
{[%clk 00:03:04]} {[%emt 00:00:02]} 7. Bb2 {[%clk 00:03:06]} {[%emt 00:00:02]}
Bb7 {[%clk 00:03:04]} {[%emt 00:00:01]} 8. e3 {[%clk 00:02:54]} {[%emt
00:00:13]} Nbd7 {[%clk 00:02:59]} {[%emt 00:00:07]} 9. Nc3 {[%clk 00:02:54]}
{[%emt 00:00:02]} c5 {[%clk 00:02:57]} {[%emt 00:00:04]} 10. Qe2 {[%clk
00:02:48]} {[%emt 00:00:08]} Re8 {[%clk 00:02:54]} {[%emt 00:00:05]} 11. Rfd1
{[%clk 00:02:47]} {[%emt 00:00:03]} Qc7 {[%clk 00:02:46]} {[%emt 00:00:10]} 12.
Nb5 {[%clk 00:02:40]} {[%emt 00:00:09]} Qb8 {[%clk 00:02:42]} {[%emt 00:00:06]}
13. Rac1 {[%clk 00:02:39]} {[%emt 00:00:04]} a6 {[%clk 00:02:34]} {[%emt
00:00:10]} 14. Nc3 {[%clk 00:02:39]} {[%emt 00:00:02]} Bc6 {[%clk 00:02:19]}
{[%emt 00:00:16]} 15. cxd5 {[%clk 00:02:22]} {[%emt 00:00:19]} Nxd5 {[%clk
00:02:18]} {[%emt 00:00:03]} 16. d4 {[%clk 00:02:17]} {[%emt 00:00:07]} Nxc3
{[%clk 00:02:12]} {[%emt 00:00:08]} 17. Bxc3 {[%clk 00:02:18]} {[%emt
00:00:01]} Qb7 {[%clk 00:02:08]} {[%emt 00:00:06]} 18. Ne1 {[%clk 00:02:13]}
{[%emt 00:00:07]} Bxg2 {[%clk 00:02:06]} {[%emt 00:00:03]} 19. Nxg2 {[%clk
00:02:13]} {[%emt 00:00:02]} Rac8 {[%clk 00:01:56]} {[%emt 00:00:12]} 20. dxc5
{[%clk 00:02:06]} {[%emt 00:00:10]} Nxc5 {[%clk 00:01:41]} {[%emt 00:00:16]} 21.
Qg4 {[%clk 00:02:03]} {[%emt 00:00:05]} Bf8 {[%clk 00:01:38]} {[%emt 00:00:05]}
22. Bd4 {[%clk 00:01:07]} {[%emt 00:00:58]} Ne4 {[%clk 00:00:57]} {[%emt
00:00:44]} 23. Nh4 {[%clk 00:00:51]} {[%emt 00:00:18]} Rxc1 {[%clk 00:00:33]}
{[%emt 00:00:27]} 24. Rxc1 {[%clk 00:00:51]} f5 {[%clk 00:00:26]} {[%emt
00:00:08]} 25. Qf3 {[%clk 00:00:50]} {[%emt 00:00:03]} Rc8 {[%clk 00:00:21]}
{[%emt 00:00:07]} 26. Qd1 {[%clk 00:00:45]} {[%emt 00:00:07]} Rxc1 {[%clk
00:00:14]} {[%emt 00:00:10]} 27. Qxc1 {[%clk 00:00:47]} Ng5 {[%clk 00:00:12]}
{[%emt 00:00:04]} 28. f3 {[%clk 00:00:19]} {[%emt 00:00:30]} Nxf3+ {[%clk
00:00:11]} {[%emt 00:00:03]} 29. Nxf3 {[%clk 00:00:20]} Qxf3 {[%clk 00:00:12]}
{[%emt 00:00:02]} 30. Qc8 {[%clk 00:00:17]} {[%emt 00:00:04]} Qd1+ {[%clk
00:00:09]} {[%emt 00:00:05]} 31. Kg2 {[%clk 00:00:17]} {[%emt 00:00:03]} Qe2+
{[%clk 00:00:09]} {[%emt 00:00:02]} 32. Kg1 {[%clk 00:00:18]} Qd1+ {[%clk
00:00:09]} {[%emt 00:00:03]} 33. Kg2 {[%clk 00:00:16]} {[%emt 00:00:04]} Qe2+
{[%clk 00:00:09]} {[%emt 00:00:02]} 34. Kg1 {[%clk 00:00:17]} Qe1+ {[%clk
00:00:09]} {[%emt 00:00:02]} 35. Kg2 {[%clk 00:00:18]} {[%emt 00:00:01]} Qe2+
{[%clk 00:00:09]} {[%emt 00:00:02]} 1/2-1/2

[Event "Blixt-SM 2021"]
[Site "Elite Hotel Marina Plaza, Kungstorget 6, Helsingborg, Sweden"]
[Date "2021.11.14"]
[Round "10.9"]
[White "Makinen, Janne"]
[Black "Frisk, Ellinor"]
[Result "0-1"]
[TimeControl "3 minutes + 2 seconds per move."]
[BlackTitle "WIM"]
[WhiteFideId "1704036"]
[BlackFideId "1708481"]
[WhiteElo "2004"]
[BlackElo "2142"]

1. d4 {[%clk 00:03:03]} d5 {[%clk 00:03:03]} {[%emt 00:00:01]} 2. c4 {[%clk
00:03:04]} {[%emt 00:00:01]} c6 {[%clk 00:03:05]} 3. Nc3 {[%clk 00:03:05]} e5
{[%clk 00:03:02]} {[%emt 00:00:05]} 4. cxd5 {[%clk 00:02:58]} {[%emt 00:00:09]}
cxd5 {[%clk 00:03:03]} 5. dxe5 {[%clk 00:02:54]} {[%emt 00:00:06]} d4 {[%clk
00:03:04]} 6. Ne4 {[%clk 00:02:53]} {[%emt 00:00:02]} Qa5+ {[%clk 00:03:03]}
{[%emt 00:00:04]} 7. Nd2 {[%clk 00:02:37]} {[%emt 00:00:18]} Nc6 {[%clk
00:02:35]} {[%emt 00:00:30]} 8. Ngf3 {[%clk 00:02:37]} {[%emt 00:00:01]} Nxe5
{[%clk 00:02:34]} {[%emt 00:00:03]} 9. Nxe5 {[%clk 00:02:33]} {[%emt 00:00:07]}
Qxe5 {[%clk 00:02:35]} {[%emt 00:00:01]} 10. Nf3 {[%clk 00:02:32]} {[%emt
00:00:03]} Bb4+ {[%clk 00:02:28]} {[%emt 00:00:09]} 11. Bd2 {[%clk 00:02:33]}
Qa5 {[%clk 00:01:52]} {[%emt 00:00:38]} 12. a3 {[%clk 00:02:34]} {[%emt
00:00:01]} Bxd2+ {[%clk 00:01:44]} {[%emt 00:00:10]} 13. Qxd2 {[%clk 00:02:35]}
Qxd2+ {[%clk 00:01:38]} {[%emt 00:00:08]} 14. Kxd2 {[%clk 00:02:36]} {[%emt
00:00:01]} Bg4 {[%clk 00:01:23]} {[%emt 00:00:17]} 15. Nxd4 {[%clk 00:02:34]}
{[%emt 00:00:04]} O-O-O {[%clk 00:01:21]} {[%emt 00:00:04]} 16. e3 {[%clk
00:02:35]} Nf6 {[%clk 00:01:21]} {[%emt 00:00:02]} 17. f3 {[%clk 00:02:33]}
{[%emt 00:00:04]} Bh5 {[%clk 00:01:18]} {[%emt 00:00:05]} 18. Rc1+ {[%clk
00:02:25]} {[%emt 00:00:10]} Kb8 {[%clk 00:01:19]} 19. Bd3 {[%clk 00:02:06]}
{[%emt 00:00:22]} Rhe8 {[%clk 00:01:15]} {[%emt 00:00:06]} 20. Rhd1 {[%clk
00:01:51]} {[%emt 00:00:17]} Nd5 {[%clk 00:01:16]} {[%emt 00:00:01]} 21. Be4
{[%clk 00:01:51]} {[%emt 00:00:02]} Nb6 {[%clk 00:01:06]} {[%emt 00:00:12]} 22.
g4 {[%clk 00:01:39]} {[%emt 00:00:13]} Bg6 {[%clk 00:01:07]} 23. Bxg6 {[%clk
00:01:32]} {[%emt 00:00:10]} hxg6 {[%clk 00:01:08]} 24. Ke2 {[%clk 00:01:28]}
{[%emt 00:00:06]} Nd5 {[%clk 00:01:06]} {[%emt 00:00:04]} 25. e4 {[%clk
00:01:14]} {[%emt 00:00:15]} Nf4+ {[%clk 00:01:06]} {[%emt 00:00:02]} 26. Kf2
{[%clk 00:01:14]} {[%emt 00:00:02]} Rc8 {[%clk 00:00:42]} {[%emt 00:00:26]} 27.
Rxc8+ {[%clk 00:01:08]} {[%emt 00:00:09]} Rxc8 {[%clk 00:00:43]} 28. Rd2 {[%clk
00:01:03]} {[%emt 00:00:07]} Rc1 {[%clk 00:00:40]} {[%emt 00:00:04]} 29. Nb5
{[%clk 00:00:53]} {[%emt 00:00:13]} b6 {[%clk 00:00:23]} {[%emt 00:00:19]} 30.
Nd6 {[%clk 00:00:46]} {[%emt 00:00:09]} f6 {[%clk 00:00:14]} {[%emt 00:00:11]}
31. Nb5 {[%clk 00:00:36]} {[%emt 00:00:12]} Rb1 {[%clk 00:00:11]} {[%emt
00:00:05]} 32. h4 {[%clk 00:00:32]} {[%emt 00:00:07]} Rxb2 {[%clk 00:00:10]}
{[%emt 00:00:03]} 33. Rxb2 {[%clk 00:00:17]} {[%emt 00:00:17]} Nd3+ {[%clk
00:00:11]} 34. Ke3 {[%clk 00:00:18]} Nxb2 {[%clk 00:00:12]} 35. Nd6 {[%clk
00:00:18]} {[%emt 00:00:02]} Kc7 {[%clk 00:00:08]} {[%emt 00:00:06]} 36. Ne8+
{[%clk 00:00:19]} Kd7 {[%clk 00:00:09]} {[%emt 00:00:02]} 37. Nxg7 {[%clk
00:00:20]} Nc4+ {[%clk 00:00:10]} 38. Kd4 {[%clk 00:00:19]} {[%emt 00:00:03]}
Nxa3 {[%clk 00:00:11]} 39. h5 {[%clk 00:00:20]} {[%emt 00:00:02]} gxh5 {[%clk
00:00:09]} {[%emt 00:00:04]} 40. gxh5 {[%clk 00:00:21]} Ke7 {[%clk 00:00:07]}
{[%emt 00:00:03]} 41. h6 {[%clk 00:00:21]} {[%emt 00:00:02]} Kf7 {[%clk
00:00:09]} 42. Nf5 {[%clk 00:00:21]} {[%emt 00:00:02]} Kg6 {[%clk 00:00:09]}
{[%emt 00:00:02]} 43. f4 {[%clk 00:00:18]} {[%emt 00:00:05]} Nb5+ {[%clk
00:00:09]} {[%emt 00:00:03]} 44. Kc4 {[%clk 00:00:17]} {[%emt 00:00:02]} Nc7
{[%clk 00:00:10]} {[%emt 00:00:01]} 45. Kb4 {[%clk 00:00:12]} {[%emt 00:00:07]}
a5+ {[%clk 00:00:11]} 46. Ka4 {[%clk 00:00:13]} {[%emt 00:00:02]} Ne6 {[%clk
00:00:12]} {[%emt 00:00:01]} 47. Ne7+ {[%clk 00:00:09]} {[%emt 00:00:06]} Kxh6
{[%clk 00:00:12]} {[%emt 00:00:01]} 48. f5 {[%clk 00:00:06]} {[%emt 00:00:05]}
Nc5+ {[%clk 00:00:13]} {[%emt 00:00:01]} 49. Kb5 {[%clk 00:00:07]} {[%emt
00:00:01]} Nxe4 {[%clk 00:00:14]} {[%emt 00:00:01]} 50. Nd5 {[%clk 00:00:04]}
{[%emt 00:00:04]} Kg5 {[%clk 00:00:12]} {[%emt 00:00:04]} 0-1

[Event "Blixt-SM 2021"]
[Site "Elite Hotel Marina Plaza, Kungstorget 6, Helsingborg, Sweden"]
[Date "2021.11.14"]
[Round "12.7"]
[White "Neretljak, Nedzad"]
[Black "Svensson, Mikael"]
[Result "1-0"]
[TimeControl "3 minutes + 2 seconds per move."]
[WhiteFideId "1713132"]
[BlackFideId "1716433"]
[WhiteElo "2148"]
[BlackElo "2073"]

1. e4 {[%clk 00:03:04]} {[%emt 00:11:24]} e6 {[%clk 00:03:04]} {[%emt
00:00:01]} 2. d4 {[%clk 00:03:04]} {[%emt 00:00:01]} d5 {[%clk 00:03:05]} 3. e5
{[%clk 00:03:05]} {[%emt 00:00:02]} c5 {[%clk 00:03:06]} {[%emt 00:00:02]} 4.
c3 {[%clk 00:03:07]} Ne7 {[%clk 00:03:06]} {[%emt 00:00:02]} 5. Nf3 {[%clk
00:03:06]} {[%emt 00:00:03]} Nec6 {[%clk 00:03:07]} 6. a3 {[%clk 00:03:05]}
{[%emt 00:00:04]} a5 {[%clk 00:03:08]} {[%emt 00:00:02]} 7. Bd3 {[%clk
00:03:06]} b6 {[%clk 00:03:09]} 8. O-O {[%clk 00:03:05]} {[%emt 00:00:03]} Ba6
{[%clk 00:03:10]} {[%emt 00:00:01]} 9. Bxa6 {[%clk 00:02:58]} {[%emt 00:00:09]}
Nxa6 {[%clk 00:03:10]} {[%emt 00:00:02]} 10. Re1 {[%clk 00:02:57]} {[%emt
00:00:03]} Be7 {[%clk 00:03:11]} {[%emt 00:00:02]} 11. Nbd2 {[%clk 00:02:58]}
Qc7 {[%clk 00:02:58]} {[%emt 00:00:15]} 12. Nf1 {[%clk 00:02:58]} {[%emt
00:00:02]} O-O {[%clk 00:02:57]} {[%emt 00:00:04]} 13. Ng3 {[%clk 00:02:59]} b5
{[%clk 00:02:35]} {[%emt 00:00:24]} 14. Nh5 {[%clk 00:02:43]} {[%emt 00:00:18]}
b4 {[%clk 00:02:14]} {[%emt 00:00:24]} 15. h3 {[%clk 00:02:41]} {[%emt
00:00:03]} Rab8 {[%clk 00:02:08]} {[%emt 00:00:09]} 16. Nh2 {[%clk 00:02:41]}
{[%emt 00:00:02]} Qb6 {[%clk 00:01:47]} {[%emt 00:00:23]} 17. Qg4 {[%clk
00:02:41]} {[%emt 00:00:02]} g6 {[%clk 00:01:38]} {[%emt 00:00:11]} 18. Nf6+
{[%clk 00:02:33]} {[%emt 00:00:10]} Bxf6 {[%clk 00:01:11]} {[%emt 00:00:29]} 19.
exf6 {[%clk 00:02:33]} e5 {[%clk 00:00:31]} {[%emt 00:00:44]} 20. dxe5 {[%clk
00:02:26]} Nd8 {[%clk 00:00:31]} {[%emt 00:00:10]} 21. Qg5 {[%clk 00:02:23]}
Ne6 {[%clk 00:00:30]} {[%emt 00:00:08]} 22. Qh6 {[%clk 00:02:15]} bxc3 {[%clk
00:00:24]} {[%emt 00:00:19]} 23. bxc3 {[%clk 00:02:16]} d4 {[%clk 00:00:17]}
{[%emt 00:00:10]} 24. Re4 {[%clk 00:02:08]} 1-0